[Event "Titled Tuesday Blitz April 4 Late 2023"]
[White "Leitao, Rafael"]
[Black "cryptoguru02"]
[WhiteFideId "2101246"]
[WhiteElo "2609"]
[BlackElo "2630"]
[Result "0-1"]
[Round "11"]
[TimeControl "180+2"]
[Date "2023.04.04"]
[WhiteClock "0:00:19"]
[BlackClock "0:00:53"]

1. c4 {[%clk 0:03:00]}  g6 {[%clk 0:02:59]} 2. Nc3 {[%clk 0:02:59]}  Bg7 {[%clk 0:03:00]} 3. g3 {[%clk 0:03:00]}  e6 {[%clk 0:02:58]} 4. Bg2 {[%clk 0:03:00]}  Ne7 {[%clk 0:02:58]} 5. Nf3 {[%clk 0:03:00]}  d5 {[%clk 0:02:58]} 6. O-O {[%clk 0:02:59]}  O-O {[%clk 0:02:58]} 7. d4 {[%clk 0:02:59]}  dxc4 {[%clk 0:02:54]} 8. e4 {[%clk 0:02:57]}  a6 {[%clk 0:02:47]} 9. a4 {[%clk 0:02:57]}  Nbc6 {[%clk 0:02:47]} 10. Be3 {[%clk 0:02:54]}  Na5 {[%clk 0:02:43]} 11. Qe2 {[%clk 0:02:45]}  c6 {[%clk 0:02:36]} 12. h4 {[%clk 0:02:37]}  b5 {[%clk 0:02:35]} 13. e5 {[%clk 0:02:24]}  Nd5 {[%clk 0:02:30]} 14. Bg5 {[%clk 0:02:24]}  Qb6 {[%clk 0:02:21]} 15. h5 {[%clk 0:02:18]}  Nb3 {[%clk 0:02:20]} 16. h6 {[%clk 0:02:04]}  Bh8 {[%clk 0:02:18]} 17. Rad1 {[%clk 0:02:03]}  c5 {[%clk 0:02:06]} 18. dxc5 {[%clk 0:01:57]}  Qxc5 {[%clk 0:01:56]} 19. Ne4 {[%clk 0:01:43]}  Qc7 {[%clk 0:01:46]} 20. Rfe1 {[%clk 0:01:07]}  Bb7 {[%clk 0:01:44]} 21. Nd6 {[%clk 0:01:07]}  Nc5 {[%clk 0:01:36]} 22. Nh2 {[%clk 0:00:56]}  Nd3 {[%clk 0:01:33]} 23. Rxd3 {[%clk 0:00:57]}  cxd3 {[%clk 0:01:33]} 24. Qxd3 {[%clk 0:00:58]}  f5 {[%clk 0:01:27]} 25. Rc1 {[%clk 0:00:49]}  Qd7 {[%clk 0:01:23]} 26. f4 {[%clk 0:00:40]}  Rac8 {[%clk 0:01:13]} 27. Rd1 {[%clk 0:00:31]}  bxa4 {[%clk 0:01:07]} 28. Nxb7 {[%clk 0:00:27]}  Qxb7 {[%clk 0:01:05]} 29. Nf1 {[%clk 0:00:26]}  Qb5 {[%clk 0:01:00]} 30. Qxb5 {[%clk 0:00:22]}  axb5 {[%clk 0:01:01]} 31. Rxd5 {[%clk 0:00:23]}  exd5 {[%clk 0:00:52]} 32. Bxd5+ {[%clk 0:00:22]}  Rf7 {[%clk 0:00:53]} 33. e6 {[%clk 0:00:23]}  Bd4+ {[%clk 0:00:53]} 34. Kh1 {[%clk 0:00:20]}  Rfc7 {[%clk 0:00:52]} 35. e7+ {[%clk 0:00:20]}  Kh8 {[%clk 0:00:52]} 36. Bf7 {[%clk 0:00:20]}  Rxe7 {[%clk 0:00:52]} 37. Bxe7 {[%clk 0:00:19]}  Rc7 {[%clk 0:00:53]} 0-1


[Site "https://www.chess.com"]

[Event "Titled Tuesday Blitz April 4 Late 2023"]
[White "Kamsky, Gata"]
[Black "Fiorito, Joaquin"]
[WhiteFideId "2000024"]
[BlackFideId "180173"]
[WhiteElo "2660"]
[BlackElo "2157"]
[Result "0-1"]
[Round "11"]
[TimeControl "180+2"]
[Date "2023.04.04"]
[WhiteClock "0:00:01"]
[BlackClock "0:00:03"]

1. e4 {[%clk 0:03:00]}  c6 {[%clk 0:03:00]} 2. Nf3 {[%clk 0:02:42]}  d5 {[%clk 0:03:00]} 3. d3 {[%clk 0:02:41]}  Bg4 {[%clk 0:03:00]} 4. Be2 {[%clk 0:02:39]}  e6 {[%clk 0:02:55]} 5. O-O {[%clk 0:02:37]}  Nf6 {[%clk 0:02:48]} 6. h3 {[%clk 0:02:19]}  Bh5 {[%clk 0:02:44]} 7. Ne5 {[%clk 0:02:14]}  Bxe2 {[%clk 0:02:33]} 8. Qxe2 {[%clk 0:02:14]}  dxe4 {[%clk 0:02:29]} 9. dxe4 {[%clk 0:01:45]}  Qd4 {[%clk 0:02:28]} 10. Nc4 {[%clk 0:01:45]}  Qxe4 {[%clk 0:02:25]} 11. Be3 {[%clk 0:01:44]}  Nd5 {[%clk 0:02:13]} 12. Nbd2 {[%clk 0:01:39]}  Qxc2 {[%clk 0:02:10]} 13. Rac1 {[%clk 0:01:33]}  Qf5 {[%clk 0:02:10]} 14. Bd4 {[%clk 0:01:25]}  Nd7 {[%clk 0:02:08]} 15. Ne4 {[%clk 0:01:24]}  Qf4 {[%clk 0:01:14]} 16. g3 {[%clk 0:01:12]}  Qc7 {[%clk 0:01:12]} 17. a3 {[%clk 0:00:55]}  f6 {[%clk 0:00:31]} 18. Rfe1 {[%clk 0:00:39]}  e5 {[%clk 0:00:27]} 19. Qh5+ {[%clk 0:00:32]}  g6 {[%clk 0:00:23]} 20. Qf3 {[%clk 0:00:28]}  O-O-O {[%clk 0:00:21]} 21. Bxa7 {[%clk 0:00:22]}  b6 {[%clk 0:00:22]} 22. Nxf6 {[%clk 0:00:17]}  N7xf6 {[%clk 0:00:21]} 23. Bxb6 {[%clk 0:00:16]}  Nxb6 {[%clk 0:00:10]} 24. Nxb6+ {[%clk 0:00:16]}  Kb7 {[%clk 0:00:11]} 25. Qxf6 {[%clk 0:00:11]}  Bh6 {[%clk 0:00:12]} 26. Nc4 {[%clk 0:00:10]}  Bxc1 {[%clk 0:00:12]} 27. Rxc1 {[%clk 0:00:10]}  Rhf8 {[%clk 0:00:12]} 28. Qh4 {[%clk 0:00:10]}  Rd5 {[%clk 0:00:12]} 29. b4 {[%clk 0:00:09]}  Rfd8 {[%clk 0:00:12]} 30. Na5+ {[%clk 0:00:09]}  Ka8 {[%clk 0:00:09]} 31. Qg4 {[%clk 0:00:09]}  Qd7 {[%clk 0:00:09]} 32. Qe2 {[%clk 0:00:09]}  Rd1+ {[%clk 0:00:07]} 33. Rxd1 {[%clk 0:00:06]}  Qxd1+ {[%clk 0:00:08]} 34. Qf1 {[%clk 0:00:03]}  Qxf1+ {[%clk 0:00:07]} 35. Kxf1 {[%clk 0:00:04]}  Rd6 {[%clk 0:00:05]} 36. Ke2 {[%clk 0:00:04]}  Kb8 {[%clk 0:00:03]} 37. Ke3 {[%clk 0:00:04]}  Kc7 {[%clk 0:00:04]} 38. Nc4 {[%clk 0:00:04]}  Rd5 {[%clk 0:00:04]} 39. h4 {[%clk 0:00:02]}  Rd1 {[%clk 0:00:03]} 40. Nxe5 {[%clk 0:00:02]}  Ra1 {[%clk 0:00:03]} 41. Nc4 {[%clk 0:00:02]}  Rc1 {[%clk 0:00:03]} 42. Kd3 {[%clk 0:00:02]}  Rf1 {[%clk 0:00:04]} 43. Ke3 {[%clk 0:00:03]}  Rb1 {[%clk 0:00:04]} 44. Kd4 {[%clk 0:00:02]}  Rf1 {[%clk 0:00:04]} 45. Ke3 {[%clk 0:00:02]}  Rh1 {[%clk 0:00:04]} 46. Kd4 {[%clk 0:00:02]}  Rd1+ {[%clk 0:00:04]} 47. Ke3 {[%clk 0:00:02]}  Rd8 {[%clk 0:00:05]} 48. Ne5 {[%clk 0:00:02]}  Re8 {[%clk 0:00:06]} 49. Kd4 {[%clk 0:00:01]}  Kd6 {[%clk 0:00:05]} 50. Nc4+ {[%clk 0:00:02]}  Kc7 {[%clk 0:00:06]} 51. Ne5 {[%clk 0:00:02]}  Ra8 {[%clk 0:00:06]} 52. Nc4 {[%clk 0:00:02]}  Rd8+ {[%clk 0:00:05]} 53. Ke3 {[%clk 0:00:03]}  Re8+ {[%clk 0:00:05]} 54. Kd3 {[%clk 0:00:03]}  Rf8 {[%clk 0:00:05]} 55. Ke3 {[%clk 0:00:03]}  Rf5 {[%clk 0:00:06]} 56. Nb2 {[%clk 0:00:02]}  Kb6 {[%clk 0:00:05]} 57. Nc4+ {[%clk 0:00:02]}  Ka6 {[%clk 0:00:05]} 58. Nd6 {[%clk 0:00:02]}  Re5+ {[%clk 0:00:05]} 59. Kf4 {[%clk 0:00:02]}  Rd5 {[%clk 0:00:06]} 60. Ne4 {[%clk 0:00:02]}  Rd1 {[%clk 0:00:03]} 61. Ng5 {[%clk 0:00:01]}  Rd7 {[%clk 0:00:03]} 62. Ke5 {[%clk 0:00:01]}  Kb5 {[%clk 0:00:03]} 63. Ke6 {[%clk 0:00:02]}  Ra7 {[%clk 0:00:03]} 64. Kf6 {[%clk 0:00:01]}  Ka4 {[%clk 0:00:03]} 0-1


[Site "https://www.chess.com"]

[Event "Titled Tuesday Blitz April 4 Late 2023"]
[White "Adewumi, Tanitoluwa"]
[Black "Aggelis, Nikolaos"]
[WhiteFideId "30966396"]
[BlackFideId "4213220"]
[WhiteElo "2704"]
[BlackElo "2189"]
[Result "1-0"]
[Round "11"]
[TimeControl "180+2"]
[Date "2023.04.04"]
[WhiteClock "0:00:03"]
[BlackClock "0:00:01"]

1. e4 {[%clk 0:02:49]}  c5 {[%clk 0:03:00]} 2. Nf3 {[%clk 0:02:49]}  d6 {[%clk 0:03:00]} 3. Bb5+ {[%clk 0:02:48]}  Bd7 {[%clk 0:02:59]} 4. Bxd7+ {[%clk 0:02:47]}  Nxd7 {[%clk 0:03:00]} 5. O-O {[%clk 0:02:47]}  Ngf6 {[%clk 0:02:59]} 6. Qe2 {[%clk 0:02:47]}  g6 {[%clk 0:02:53]} 7. c3 {[%clk 0:02:48]}  Bg7 {[%clk 0:02:53]} 8. d4 {[%clk 0:02:48]}  cxd4 {[%clk 0:02:53]} 9. cxd4 {[%clk 0:02:49]}  O-O {[%clk 0:02:53]} 10. e5 {[%clk 0:02:49]}  dxe5 {[%clk 0:02:53]} 11. dxe5 {[%clk 0:02:50]}  Nd5 {[%clk 0:02:53]} 12. e6 {[%clk 0:02:51]}  N7f6 {[%clk 0:02:53]} 13. exf7+ {[%clk 0:02:51]}  Rxf7 {[%clk 0:02:51]} 14. Ng5 {[%clk 0:02:52]}  Rf8 {[%clk 0:02:33]} 15. Ne6 {[%clk 0:02:51]}  Qd7 {[%clk 0:02:22]} 16. Nxf8 {[%clk 0:02:49]}  Rxf8 {[%clk 0:02:21]} 17. Nc3 {[%clk 0:02:45]}  Nxc3 {[%clk 0:02:12]} 18. bxc3 {[%clk 0:02:46]}  Nd5 {[%clk 0:02:06]} 19. Bb2 {[%clk 0:02:42]}  Nf4 {[%clk 0:01:56]} 20. Qc4+ {[%clk 0:02:25]}  Kh8 {[%clk 0:01:47]} 21. Qe4 {[%clk 0:02:09]}  Qg4 {[%clk 0:01:47]} 22. Kh1 {[%clk 0:01:29]}  b5 {[%clk 0:01:40]} 23. Rae1 {[%clk 0:01:26]}  Qh5 {[%clk 0:01:35]} 24. Bc1 {[%clk 0:01:16]}  e5 {[%clk 0:01:25]} 25. Bxf4 {[%clk 0:01:15]}  exf4 {[%clk 0:01:11]} 26. c4 {[%clk 0:00:59]}  f3 {[%clk 0:00:59]} 27. gxf3 {[%clk 0:00:49]}  bxc4 {[%clk 0:00:47]} 28. Qxc4 {[%clk 0:00:41]}  Qxf3+ {[%clk 0:00:41]} 29. Kg1 {[%clk 0:00:40]}  Rf4 {[%clk 0:00:41]} 30. Qc8+ {[%clk 0:00:21]}  Bf8 {[%clk 0:00:41]} 31. h3 {[%clk 0:00:16]}  Rf5 {[%clk 0:00:37]} 32. Kh2 {[%clk 0:00:05]}  Rg5 {[%clk 0:00:23]} 33. Rg1 {[%clk 0:00:03]}  Qxf2+ {[%clk 0:00:19]} 34. Kh1 {[%clk 0:00:03]}  Qf3+ {[%clk 0:00:16]} 35. Kh2 {[%clk 0:00:03]}  Qf4+ {[%clk 0:00:13]} 36. Kh1 {[%clk 0:00:02]}  Qf3+ {[%clk 0:00:12]} 37. Kh2 {[%clk 0:00:03]}  Qf2+ {[%clk 0:00:04]} 38. Kh1 {[%clk 0:00:02]}  Rxg1+ {[%clk 0:00:03]} 39. Rxg1 {[%clk 0:00:02]}  Qf3+ {[%clk 0:00:04]} 40. Kh2 {[%clk 0:00:03]}  Qf2+ {[%clk 0:00:04]} 41. Rg2 {[%clk 0:00:03]}  Qf4+ {[%clk 0:00:04]} 42. Kg1 {[%clk 0:00:03]}  Kg7 {[%clk 0:00:02]} 43. Qc3+ {[%clk 0:00:03]}  Kh6 {[%clk 0:00:01]} 44. Rf2 {[%clk 0:00:03]} 1-0


[Site "https://www.chess.com"]

[Event "Titled Tuesday Blitz April 4 Late 2023"]
[White "Przybylski, Wojciech"]
[Black "Manzone, Alessandro"]
[WhiteFideId "1117599"]
[BlackFideId "112488"]
[WhiteElo "2222"]
[BlackElo "2255"]
[Result "0-1"]
[Round "11"]
[TimeControl "180+2"]
[Date "2023.04.04"]
[WhiteClock "0:00:01"]
[BlackClock "0:00:12"]

1. e4 {[%clk 0:03:00]}  c5 {[%clk 0:02:59]} 2. Nf3 {[%clk 0:03:00]}  e6 {[%clk 0:02:58]} 3. b3 {[%clk 0:02:59]}  d5 {[%clk 0:02:55]} 4. exd5 {[%clk 0:02:58]}  exd5 {[%clk 0:02:54]} 5. d4 {[%clk 0:02:58]}  Nf6 {[%clk 0:02:53]} 6. Bb5+ {[%clk 0:02:57]}  Bd7 {[%clk 0:02:50]} 7. Bxd7+ {[%clk 0:02:56]}  Nbxd7 {[%clk 0:02:48]} 8. O-O {[%clk 0:02:56]}  Be7 {[%clk 0:02:48]} 9. Bb2 {[%clk 0:02:54]}  O-O {[%clk 0:02:47]} 10. Nbd2 {[%clk 0:02:52]}  Rc8 {[%clk 0:02:36]} 11. Re1 {[%clk 0:02:51]}  Re8 {[%clk 0:02:35]} 12. h3 {[%clk 0:02:49]}  Qc7 {[%clk 0:02:29]} 13. Rc1 {[%clk 0:02:38]}  c4 {[%clk 0:02:29]} 14. Nb1 {[%clk 0:02:31]}  Ne4 {[%clk 0:02:06]} 15. c3 {[%clk 0:02:30]}  Ndf6 {[%clk 0:02:01]} 16. Rc2 {[%clk 0:02:29]}  cxb3 {[%clk 0:01:57]} 17. axb3 {[%clk 0:02:29]}  Qb6 {[%clk 0:01:58]} 18. Rce2 {[%clk 0:02:27]}  Bd6 {[%clk 0:01:53]} 19. Nh2 {[%clk 0:02:16]}  Bb8 {[%clk 0:01:49]} 20. Nf1 {[%clk 0:02:15]}  Qc7 {[%clk 0:01:37]} 21. Re3 {[%clk 0:02:13]}  Re6 {[%clk 0:01:30]} 22. f3 {[%clk 0:01:38]}  Ng5 {[%clk 0:01:26]} 23. Bc1 {[%clk 0:01:29]}  Nh5 {[%clk 0:01:10]} 24. Re5 {[%clk 0:01:24]}  Rxe5 {[%clk 0:01:00]} 25. dxe5 {[%clk 0:01:18]}  Ne6 {[%clk 0:00:53]} 26. Qxd5 {[%clk 0:01:08]}  Nhf4 {[%clk 0:00:43]} 27. Qe4 {[%clk 0:01:07]}  Ng6 {[%clk 0:00:24]} 28. f4 {[%clk 0:01:07]}  Nc5 {[%clk 0:00:25]} 29. Qc4 {[%clk 0:01:02]}  Qb6 {[%clk 0:00:21]} 30. Kh1 {[%clk 0:00:22]}  Qxb3 {[%clk 0:00:21]} 31. Qxb3 {[%clk 0:00:17]}  Nxb3 {[%clk 0:00:22]} 32. Be3 {[%clk 0:00:16]}  Ne7 {[%clk 0:00:22]} 33. Nfd2 {[%clk 0:00:11]}  Nc5 {[%clk 0:00:19]} 34. Bd4 {[%clk 0:00:10]}  Nd5 {[%clk 0:00:19]} 35. Rf1 {[%clk 0:00:06]}  Ne6 {[%clk 0:00:17]} 36. f5 {[%clk 0:00:05]}  Nxd4 {[%clk 0:00:18]} 37. cxd4 {[%clk 0:00:06]}  Ne3 {[%clk 0:00:18]} 38. Re1 {[%clk 0:00:05]}  Nc2 {[%clk 0:00:17]} 39. Rd1 {[%clk 0:00:05]}  Nxd4 {[%clk 0:00:16]} 40. e6 {[%clk 0:00:04]}  fxe6 {[%clk 0:00:16]} 41. fxe6 {[%clk 0:00:04]}  Nxe6 {[%clk 0:00:17]} 42. Ne4 {[%clk 0:00:05]}  Nf4 {[%clk 0:00:15]} 43. Nbc3 {[%clk 0:00:04]}  Re8 {[%clk 0:00:15]} 44. Rd7 {[%clk 0:00:03]}  b5 {[%clk 0:00:13]} 45. Rb7 {[%clk 0:00:03]}  a6 {[%clk 0:00:12]} 46. Kg1 {[%clk 0:00:03]}  Be5 {[%clk 0:00:13]} 47. Kf2 {[%clk 0:00:02]}  Nd3+ {[%clk 0:00:13]} 48. Ke3 {[%clk 0:00:02]}  Nb4 {[%clk 0:00:13]} 49. Kf3 {[%clk 0:00:02]}  Nc6 {[%clk 0:00:11]} 50. Rb6 {[%clk 0:00:02]}  Nd4+ {[%clk 0:00:11]} 51. Ke3 {[%clk 0:00:01]}  Nf5+ {[%clk 0:00:12]} 52. Kf3 {[%clk 0:00:01]}  Bd4 {[%clk 0:00:12]} 0-1


[Site "https://www.chess.com"]

[Event "Titled Tuesday Blitz April 4 Late 2023"]
[White "Papp, Levente"]
[Black "Shapiro, Viktor"]
[WhiteFideId "751243"]
[BlackFideId "4175700"]
[WhiteElo "2380"]
[BlackElo "2152"]
[Result "0-1"]
[Round "11"]
[TimeControl "180+2"]
[Date "2023.04.04"]
[WhiteClock "0:00:02"]
[BlackClock "0:00:34"]

1. b3 {[%clk 0:02:57]}  Nf6 {[%clk 0:02:56]} 2. Bb2 {[%clk 0:02:58]}  d5 {[%clk 0:02:56]} 3. Nf3 {[%clk 0:02:58]}  Bf5 {[%clk 0:02:55]} 4. g3 {[%clk 0:02:57]}  e6 {[%clk 0:02:56]} 5. Bg2 {[%clk 0:02:58]}  Be7 {[%clk 0:02:56]} 6. O-O {[%clk 0:02:59]}  O-O {[%clk 0:02:57]} 7. d3 {[%clk 0:02:57]}  h6 {[%clk 0:02:57]} 8. c4 {[%clk 0:02:31]}  c6 {[%clk 0:02:57]} 9. Qc2 {[%clk 0:02:15]}  Nbd7 {[%clk 0:02:55]} 10. Nbd2 {[%clk 0:02:09]}  Bh7 {[%clk 0:02:54]} 11. Rad1 {[%clk 0:02:04]}  a5 {[%clk 0:02:54]} 12. a3 {[%clk 0:02:03]}  Rc8 {[%clk 0:02:44]} 13. e4 {[%clk 0:02:00]}  b5 {[%clk 0:02:42]} 14. Qb1 {[%clk 0:01:56]}  Nc5 {[%clk 0:02:38]} 15. Rfe1 {[%clk 0:01:32]}  Qb6 {[%clk 0:02:28]} 16. b4 {[%clk 0:01:24]}  axb4 {[%clk 0:02:23]} 17. axb4 {[%clk 0:01:24]}  Nxd3 {[%clk 0:01:58]} 18. c5 {[%clk 0:01:11]}  Nxc5 {[%clk 0:01:50]} 19. Bd4 {[%clk 0:00:47]}  dxe4 {[%clk 0:01:39]} 20. Nxe4 {[%clk 0:00:46]}  Nfxe4 {[%clk 0:01:38]} 21. Rxe4 {[%clk 0:00:46]}  Bxe4 {[%clk 0:01:25]} 22. Qxe4 {[%clk 0:00:24]}  Nxe4 {[%clk 0:01:24]} 23. Bxb6 {[%clk 0:00:25]}  Bxb4 {[%clk 0:01:15]} 24. Ne5 {[%clk 0:00:22]}  Nc3 {[%clk 0:01:06]} 25. Rd7 {[%clk 0:00:20]}  Nd5 {[%clk 0:01:04]} 26. Rb7 {[%clk 0:00:06]}  Bc3 {[%clk 0:01:02]} 27. Nd7 {[%clk 0:00:05]}  Rfe8 {[%clk 0:00:59]} 28. Bc5 {[%clk 0:00:05]}  Bb4 {[%clk 0:00:46]} 29. Bf1 {[%clk 0:00:03]}  Bxc5 {[%clk 0:00:46]} 30. Nxc5 {[%clk 0:00:04]}  Rb8 {[%clk 0:00:44]} 31. Rd7 {[%clk 0:00:03]}  b4 {[%clk 0:00:43]} 32. Bc4 {[%clk 0:00:03]}  Nb6 {[%clk 0:00:42]} 33. Rd4 {[%clk 0:00:02]}  Nxc4 {[%clk 0:00:40]} 34. Rxc4 {[%clk 0:00:01]}  b3 {[%clk 0:00:40]} 35. Rc1 {[%clk 0:00:02]}  b2 {[%clk 0:00:40]} 36. Rb1 {[%clk 0:00:03]}  Rb5 {[%clk 0:00:40]} 37. Na4 {[%clk 0:00:02]}  Reb8 {[%clk 0:00:40]} 38. Kf1 {[%clk 0:00:03]}  Rb4 {[%clk 0:00:41]} 39. Nc3 {[%clk 0:00:03]}  Rc4 {[%clk 0:00:41]} 40. Ne2 {[%clk 0:00:03]}  c5 {[%clk 0:00:38]} 41. Ke1 {[%clk 0:00:03]}  g5 {[%clk 0:00:36]} 42. Kd2 {[%clk 0:00:03]}  Rd8+ {[%clk 0:00:36]} 43. Ke1 {[%clk 0:00:03]}  Rc2 {[%clk 0:00:36]} 44. Ng1 {[%clk 0:00:02]}  Rc1+ {[%clk 0:00:34]} 0-1


[Site "https://www.chess.com"]

[Event "Titled Tuesday Blitz April 4 Late 2023"]
[White "Baskakov, Egor"]
[Black "Moore, Nicholas"]
[WhiteFideId "24197866"]
[BlackFideId "4303709"]
[WhiteElo "2212"]
[BlackElo "2470"]
[Result "0-1"]
[Round "11"]
[TimeControl "180+2"]
[Date "2023.04.04"]
[WhiteClock "0:00:07"]
[BlackClock "0:00:18"]

1. e4 {[%clk 0:02:55]}  c5 {[%clk 0:02:59]} 2. Nf3 {[%clk 0:02:55]}  e6 {[%clk 0:02:57]} 3. Be2 {[%clk 0:02:55]}  Nc6 {[%clk 0:02:57]} 4. c4 {[%clk 0:02:55]}  Nge7 {[%clk 0:02:54]} 5. Nc3 {[%clk 0:02:55]}  Nd4 {[%clk 0:02:53]} 6. O-O {[%clk 0:02:55]}  Nec6 {[%clk 0:02:53]} 7. Nxd4 {[%clk 0:02:54]}  Nxd4 {[%clk 0:02:52]} 8. d3 {[%clk 0:02:54]}  g6 {[%clk 0:02:52]} 9. f4 {[%clk 0:02:54]}  d6 {[%clk 0:02:51]} 10. Bg4 {[%clk 0:02:53]}  Bg7 {[%clk 0:02:38]} 11. Ne2 {[%clk 0:02:53]}  f5 {[%clk 0:02:35]} 12. Bh3 {[%clk 0:02:53]}  O-O {[%clk 0:02:34]} 13. Nxd4 {[%clk 0:02:51]}  Bxd4+ {[%clk 0:02:34]} 14. Kh1 {[%clk 0:02:51]}  b6 {[%clk 0:02:34]} 15. g4 {[%clk 0:02:49]}  Bb7 {[%clk 0:02:32]} 16. gxf5 {[%clk 0:02:48]}  exf5 {[%clk 0:02:32]} 17. Bg2 {[%clk 0:02:49]}  Qd7 {[%clk 0:02:29]} 18. Bd2 {[%clk 0:02:37]}  Bxb2 {[%clk 0:02:27]} 19. Rb1 {[%clk 0:02:37]}  Bd4 {[%clk 0:02:26]} 20. Qe2 {[%clk 0:02:34]}  Rae8 {[%clk 0:02:25]} 21. Rbe1 {[%clk 0:02:34]}  Qa4 {[%clk 0:02:17]} 22. Be3 {[%clk 0:02:24]}  Bxe3 {[%clk 0:02:14]} 23. Qxe3 {[%clk 0:02:24]}  fxe4 {[%clk 0:02:05]} 24. dxe4 {[%clk 0:02:13]}  Qxc4 {[%clk 0:02:04]} 25. f5 {[%clk 0:02:13]}  Qd4 {[%clk 0:01:51]} 26. Qg5 {[%clk 0:02:07]}  Qf6 {[%clk 0:01:51]} 27. Qg3 {[%clk 0:02:06]}  Qe5 {[%clk 0:01:45]} 28. Qh4 {[%clk 0:02:00]}  Kg7 {[%clk 0:01:34]} 29. Re3 {[%clk 0:01:39]}  Qf6 {[%clk 0:01:10]} 30. Qg4 {[%clk 0:01:27]}  Qd4 {[%clk 0:00:46]} 31. Rh3 {[%clk 0:01:09]}  Bxe4 {[%clk 0:00:44]} 32. f6+ {[%clk 0:01:09]}  Kh8 {[%clk 0:00:43]} 33. Qd7 {[%clk 0:00:33]}  Bxg2+ {[%clk 0:00:41]} 34. Kxg2 {[%clk 0:00:34]}  Qd5+ {[%clk 0:00:41]} 35. Rhf3 {[%clk 0:00:19]}  Re2+ {[%clk 0:00:34]} 36. Kg1 {[%clk 0:00:18]}  Qf7 {[%clk 0:00:26]} 37. Qxd6 {[%clk 0:00:16]}  Re6 {[%clk 0:00:26]} 38. Qf4 {[%clk 0:00:15]}  Rfe8 {[%clk 0:00:25]} 39. h4 {[%clk 0:00:13]}  Re4 {[%clk 0:00:24]} 40. Qg3 {[%clk 0:00:13]}  h5 {[%clk 0:00:22]} 41. R1f2 {[%clk 0:00:09]}  Rg4 {[%clk 0:00:22]} 42. Qxg4 {[%clk 0:00:09]}  hxg4 {[%clk 0:00:22]} 43. Rf4 {[%clk 0:00:09]}  Re1+ {[%clk 0:00:20]} 44. Kg2 {[%clk 0:00:10]}  Qd5+ {[%clk 0:00:19]} 45. Kg3 {[%clk 0:00:08]}  Rg1+ {[%clk 0:00:19]} 46. Kh2 {[%clk 0:00:07]}  Qh1# {[%clk 0:00:18]} 0-1


[Site "https://www.chess.com"]

[Event "Titled Tuesday Blitz April 4 Late 2023"]
[White "Jimenez Jimenez, Leandro"]
[Black "Martins, Bruno Andre Leite"]
[WhiteFideId "6415253"]
[BlackFideId "1942255"]
[WhiteElo "2263"]
[BlackElo "2240"]
[Result "0-1"]
[Round "11"]
[TimeControl "180+2"]
[Date "2023.04.04"]
[WhiteClock "0:00:15"]
[BlackClock "0:00:15"]

1. d4 {[%clk 0:03:00]}  Nf6 {[%clk 0:01:06]} 2. c4 {[%clk 0:03:00]}  e6 {[%clk 0:01:06]} 3. Nf3 {[%clk 0:03:00]}  d5 {[%clk 0:01:07]} 4. g3 {[%clk 0:03:00]}  dxc4 {[%clk 0:01:06]} 5. Bg2 {[%clk 0:03:00]}  Bd7 {[%clk 0:01:07]} 6. O-O {[%clk 0:03:01]}  Bc6 {[%clk 0:01:07]} 7. Qc2 {[%clk 0:03:00]}  b5 {[%clk 0:01:07]} 8. a4 {[%clk 0:03:00]}  a6 {[%clk 0:01:07]} 9. axb5 {[%clk 0:02:55]}  axb5 {[%clk 0:01:08]} 10. Rxa8 {[%clk 0:02:55]}  Bxa8 {[%clk 0:01:08]} 11. Nc3 {[%clk 0:02:53]}  b4 {[%clk 0:01:04]} 12. Qa4+ {[%clk 0:02:52]}  Bc6 {[%clk 0:01:02]} 13. Nb5 {[%clk 0:02:45]}  Nbd7 {[%clk 0:00:50]} 14. Bf4 {[%clk 0:02:28]}  Nd5 {[%clk 0:00:45]} 15. Ne5 {[%clk 0:02:21]}  Nxe5 {[%clk 0:00:39]} 16. Bxe5 {[%clk 0:02:13]}  Qb8 {[%clk 0:00:36]} 17. Nd6+ {[%clk 0:01:56]}  Kd7 {[%clk 0:00:30]} 18. Nb5 {[%clk 0:01:12]}  Qxb5 {[%clk 0:00:25]} 19. Qa7 {[%clk 0:01:07]}  Qb7 {[%clk 0:00:17]} 20. Qa5 {[%clk 0:01:07]}  Nb6 {[%clk 0:00:16]} 21. f3 {[%clk 0:00:58]}  Bd6 {[%clk 0:00:15]} 22. Bxg7 {[%clk 0:00:57]}  Ra8 {[%clk 0:00:15]} 23. Qh5 {[%clk 0:00:56]}  c3 {[%clk 0:00:15]} 24. Qxf7+ {[%clk 0:00:55]}  Be7 {[%clk 0:00:15]} 25. Bf6 {[%clk 0:00:51]}  Re8 {[%clk 0:00:15]} 26. Bh3 {[%clk 0:00:51]}  Bd5 {[%clk 0:00:16]} 27. e4 {[%clk 0:00:51]}  Bc4 {[%clk 0:00:16]} 28. d5 {[%clk 0:00:50]}  Bxf1 {[%clk 0:00:09]} 29. Bxe6+ {[%clk 0:00:24]}  Kd6 {[%clk 0:00:07]} 30. e5+ {[%clk 0:00:20]}  Kc5 {[%clk 0:00:07]} 31. Bxe7+ {[%clk 0:00:21]}  Rxe7 {[%clk 0:00:07]} 32. Qxe7+ {[%clk 0:00:21]}  Kb5 {[%clk 0:00:06]} 33. bxc3 {[%clk 0:00:18]}  bxc3 {[%clk 0:00:06]} 34. d6 {[%clk 0:00:17]}  c2 {[%clk 0:00:05]} 35. Bd7+ {[%clk 0:00:15]}  Nxd7 {[%clk 0:00:04]} 36. Qxd7+ {[%clk 0:00:16]}  Qc6 {[%clk 0:00:05]} 37. Qxc6+ {[%clk 0:00:13]}  Kxc6 {[%clk 0:00:06]} 38. dxc7 {[%clk 0:00:12]}  Kxc7 {[%clk 0:00:07]} 39. e6 {[%clk 0:00:12]}  c1=Q {[%clk 0:00:07]} 40. e7 {[%clk 0:00:13]}  Bb5+ {[%clk 0:00:07]} 41. Kg2 {[%clk 0:00:13]}  Be8 {[%clk 0:00:08]} 42. Kh3 {[%clk 0:00:14]}  Qc2 {[%clk 0:00:08]} 43. Kg4 {[%clk 0:00:14]}  Qg6+ {[%clk 0:00:08]} 44. Kf4 {[%clk 0:00:14]}  Qf7+ {[%clk 0:00:09]} 45. Kg4 {[%clk 0:00:15]}  Qxe7 {[%clk 0:00:10]} 46. f4 {[%clk 0:00:15]}  Kd6 {[%clk 0:00:11]} 47. f5 {[%clk 0:00:16]}  Qe2+ {[%clk 0:00:12]} 48. Kf4 {[%clk 0:00:16]}  Qe5+ {[%clk 0:00:12]} 49. Kg5 {[%clk 0:00:16]}  Bd7 {[%clk 0:00:13]} 50. g4 {[%clk 0:00:16]}  Qxh2 {[%clk 0:00:14]} 51. Kf6 {[%clk 0:00:15]}  Qf4 {[%clk 0:00:14]} 52. g5 {[%clk 0:00:15]}  Qxf5+ {[%clk 0:00:14]} 53. Kg7 {[%clk 0:00:15]}  Qxg5+ {[%clk 0:00:14]} 54. Kh8 {[%clk 0:00:16]}  Qf6+ {[%clk 0:00:14]} 55. Kxh7 {[%clk 0:00:16]}  Bf5+ {[%clk 0:00:14]} 56. Kg8 {[%clk 0:00:15]}  Qe7 {[%clk 0:00:14]} 57. Kh8 {[%clk 0:00:15]}  Qh7# {[%clk 0:00:15]} 0-1


[Site "https://www.chess.com"]